bitfinex/quotes_ETHUSD_20250908
["timestamp","ask_amount","ask_price","bid_price","bid_amount"]
[1757346029782,8.97824509,4365.9,4365.8,1.759]
[1757346030075,8.97744509,4365.9,4365.8,5.696]
[1757346030288,11.26792357,4365.9,4365.8,5.696]
[1757346030434,12.05992357,4365.9,4365.7,1.757]
[1757346030637,12.05992357,4365.9,4365.3,1.759]
[1757346030638,3.08274082,4365.4,4365.3,1.759]
[1757346030848,2.29089643,4365.2,4364.9,0.002]
[1757346031061,2.29089826,4365.1,4365.0,5.695]
[1757346031270,2.6202,4365.1,4365.0,5.695]
[1757346031662,3.0697,4365.1,4365.0,5.695]
[1757346032886,4.2997,4365.1,4365.0,5.695]
[1757346033071,6.59059826,4365.1,4365.0,5.695]
[1757346034250,7.82059826,4365.1,4365.0,5.695]
[1757346035554,9.05059826,4365.1,4365.0,5.695]
[1757346036251,9.04828473,4365.1,4365.0,5.695]
[1757346036452,6.75738647,4365.1,4365.0,5.695]
[1757346036651,9.04828473,4365.1,4365.0,5.695]
[1757346037086,10.27828473,4365.1,4365.0,5.695]
[1757346037485,10.27828473,4365.1,4365.0,5.697]
[1757346037486,11.53519281,4365.1,4365.0,5.697]
[1757346037792,11.53519281,4365.1,4365.0,5.691]
[1757346038360,12.76519281,4365.1,4365.0,5.691]
[1757346039184,13.55719281,4365.1,4365.0,5.689]
[1757346039699,0.792,4364.5,4364.1,1e-08]
[1757346039900,3.08352822,4363.9,4363.7,3.93]
[1757346040094,3.38182822,4363.9,4363.7,3.93]
[1757346040260,6.15322822,4363.9,4363.7,3.93]
[1757346040696,6.99623632,4363.9,4363.7,3.93]
[1757346041282,8.22623632,4363.9,4363.7,3.93]
[1757346042656,9.45623632,4363.9,4363.7,3.93]
[1757346042995,9.45623632,4363.9,4363.8,1.783]
[1757346043362,9.45623632,4363.9,4363.8,5.75]
[1757346043986,10.68623632,4363.9,4363.8,5.75]
[1757346045090,9.89423632,4363.9,4363.8,5.75]
[1757346045403,10.28122822,4363.9,4363.8,5.75]
[1757346045605,9.83172822,4363.9,4363.8,5.75]
[1757346045793,7.50982822,4363.9,4363.8,5.75]
[1757346046099,4.92,4363.9,4363.8,5.75]
[1757346046279,7.21152822,4363.9,4363.8,5.75]
[1757346046671,8.44152822,4363.9,4363.8,5.75]
[1757346048005,9.67152822,4363.9,4363.8,5.75]
[1757346049183,9.96982822,4363.9,4363.8,5.75]
[1757346049378,11.19982822,4363.9,4363.8,5.75]
[1757346050124,11.19982822,4363.9,4363.8,6.0376]
[1757346050125,10.90152822,4363.9,4363.8,6.0376]
[1757346050766,9.84,4363.9,4363.8,6.0376]
[1757346050966,9.84,4363.9,4363.8,6.4885]
[1757346051199,9.84,4363.9,4363.8,14.24368073]
[1757346052302,11.07,4363.9,4363.8,14.24368073]
[1757346053271,11.07,4363.9,4363.8,44.24368073]
[1757346053688,12.3,4363.9,4363.8,44.24368073]
[1757346054291,12.3,4363.9,4363.8,44.24568073]
[1757346054900,12.3,4363.9,4363.8,39.4795]
[1757346055129,13.53,4363.9,4363.8,41.77108073]
[1757346055611,13.5292,4363.9,4363.8,39.4795]
[1757346056517,14.7592,4363.9,4363.8,39.4795]
[1757346056918,14.7592,4363.9,4363.8,41.77108073]
[1757346057082,14.7592,4363.9,4363.8,39.4795]
[1757346057705,15.9892,4363.9,4363.8,39.4795]
[1757346059288,17.2192,4363.9,4363.8,39.4795]
[1757346060316,17.2192,4363.9,4363.8,9.4795]
[1757346060697,18.7437,4363.9,4363.8,8.735]
[1757346060883,21.1379,4363.9,4363.8,8.735]
[1757346061083,21.1379,4363.9,4363.8,4.785]
[1757346061278,21.1379,4363.9,4363.8,8.732]
[1757346061494,23.87752822,4363.9,4363.8,1.785]
[1757346061731,23.87752822,4363.9,4363.8,5.734]
[1757346062116,25.10752822,4363.9,4363.8,5.734]
[1757346062958,19.6792,4363.9,4363.8,5.734]
[1757346063135,19.6792,4363.9,4363.8,9.479]
[1757346063734,20.9092,4363.9,4363.8,9.0471]
[1757346064906,22.1392,4363.9,4363.8,9.0471]
[1757346065751,22.1392,4363.9,4363.8,9.479]
[1757346065955,22.2136,4363.9,4363.8,9.479]
[1757346066315,23.4436,4363.9,4363.8,9.479]
[1757346066826,23.4436,4363.9,4363.8,9.0471]
[1757346067756,24.6736,4363.9,4363.8,9.479]
[1757346067952,24.6736,4363.9,4363.8,9.0471]
[1757346068639,24.6736,4363.9,4363.8,9.479]
[1757346069001,25.9036,4363.9,4363.8,9.479]
[1757346069819,25.9036,4363.9,4363.8,9.0471]
[1757346070024,25.9036,4363.9,4363.8,44.04128073]
[1757346070518,27.1336,4363.9,4363.8,44.04128073]
[1757346070837,27.1336,4363.9,4363.8,41.77058073]
[1757346071946,28.3636,4363.9,4363.8,41.77058073]
[1757346073153,31.0523,4363.9,4363.8,34.785]
[1757346073321,32.2823,4363.9,4363.8,8.723]
[1757346073526,32.7314,4363.9,4363.8,8.723]
[1757346073938,35.02292822,4363.9,4363.8,4.785]
[1757346074152,35.02292822,4363.9,4363.8,8.724]
[1757346074727,36.25292822,4363.9,4363.8,8.724]
[1757346075548,38.52083619,4363.9,4363.8,1.785]
[1757346075851,38.52083619,4363.9,4363.8,5.723]
[1757346076027,39.75083619,4363.9,4363.8,5.723]
[1757346077575,39.75083619,4363.9,4363.8,1.785]
[1757346077576,40.98083619,4363.9,4363.8,1.785]
[1757346077782,40.98083619,4363.9,4363.8,5.723]
[1757346078689,33.2846,4363.9,4363.8,6.0361]
[1757346078984,34.5146,4363.9,4363.8,6.0361]
[1757346079142,34.5146,4363.9,4363.8,5.723]
[1757346079343,39.94292822,4363.9,4363.8,5.72]
[1757346079855,39.49482822,4363.9,4363.8,5.72]
[1757346080380,40.72482822,4363.9,4363.8,5.72]
[1757346080956,40.72402822,4363.9,4363.8,5.72]
[1757346081764,41.95402822,4363.9,4363.8,5.72]
[1757346082152,39.6625,4363.9,4363.8,5.72]
[1757346082566,37.2683,4363.9,4363.8,5.72]
[1757346082783,39.55982822,4363.9,4363.8,5.72]
[1757346083200,43.18402822,4363.9,4363.8,5.72]
[1757346083495,40.8925,4363.9,4363.8,5.72]
[1757346083847,43.18402822,4363.9,4363.8,5.72]
[1757346084579,44.41402822,4363.9,4363.8,5.72]
[1757346084782,42.1225,4363.9,4363.8,5.72]
[1757346085365,44.41402822,4363.9,4363.8,5.72]
[1757346086070,39.7283,4363.9,4363.8,5.72]
[1757346086259,40.9583,4363.9,4363.8,5.72]
[1757346086457,43.24982822,4363.9,4363.8,5.72]
[1757346086672,45.53612822,4363.9,4363.8,5.72]
[1757346087890,46.76612822,4363.9,4363.8,5.72]
[1757346088672,44.4746,4363.9,4363.8,5.72]
[1757346089578,45.7046,4363.9,4363.8,5.72]
[1757346089888,45.70982822,4363.9,4363.8,5.72]
[1757346090047,47.99612822,4363.9,4363.8,5.72]
[1757346090456,45.7046,4363.9,4363.8,5.72]
[1757346090655,47.99612822,4363.9,4363.8,5.72]
[1757346091167,49.22612822,4363.9,4363.8,5.72]
[1757346092559,50.45612822,4363.9,4363.8,5.72]
[1757346094067,52.76703427,4363.9,4363.8,1.785]
[1757346094269,52.76703427,4363.9,4363.8,5.716]
[1757346094270,53.23783427,4363.9,4363.8,5.716]
[1757346095469,54.46783427,4363.9,4363.8,5.716]
[1757346096284,53.99703427,4363.9,4363.8,5.716]
[1757346096483,54.46783427,4363.9,4363.8,5.716]
[1757346096885,55.69783427,4363.9,4363.8,5.716]
[1757346098092,56.92783427,4363.9,4363.8,5.716]
[1757346099466,56.60612822,4363.9,4363.8,5.716]
[1757346099666,56.60612822,4363.9,4363.8,6.0171]
[1757346099667,51.7338,4363.9,4363.8,6.0171]
[1757346099874,51.7338,4363.9,4363.8,6.4457]
[1757346101036,52.9638,4363.9,4363.8,6.4457]
[1757346102381,54.1938,4363.9,4363.8,6.4457]
[1757346103778,55.4238,4363.9,4363.8,6.4457]
[1757346105292,56.6538,4363.9,4363.8,6.4457]
[1757346106393,56.653,4363.9,4363.8,6.4457]
[1757346107205,57.883,4363.9,4363.8,6.4457]
[1757346108686,59.113,4363.9,4363.8,6.0171]
[1757346110023,60.343,4363.9,4363.8,6.0171]
[1757346110522,60.343,4363.9,4363.8,5.716]
[1757346110723,62.63452822,4363.9,4363.8,5.716]
[1757346110881,60.343,4363.9,4363.8,5.716]
[1757346111492,61.573,4363.9,4363.8,5.716]
[1757346112784,62.803,4363.9,4363.8,5.716]
[1757346113125,62.803,4363.9,4363.8,6.0171]
[1757346113815,62.803,4363.9,4363.8,6.4612]
[1757346114237,64.033,4363.9,4363.8,6.4612]
[1757346114412,64.033,4363.9,4363.8,6.0171]
[1757346114928,66.32452822,4363.9,4363.8,5.716]
[1757346115134,68.99822822,4363.9,4363.8,5.716]
[1757346115563,68.99822822,4363.9,4363.8,1.785]
[1757346115736,72.93813619,4363.9,4363.8,1.785]
[1757346116043,72.93813619,4363.9,4363.8,5.714]
[1757346117245,74.16813619,4363.9,4363.8,5.714]
[1757346117773,74.16813619,4363.9,4363.8,1.785]
[1757346117913,74.16813619,4363.9,4363.8,5.714]
[1757346118549,75.39813619,4363.9,4363.8,5.714]
[1757346120049,76.62813619,4363.9,4363.8,5.714]
[1757346121568,77.85813619,4363.9,4363.8,5.714]
[1757346122264,75.04843619,4363.9,4363.8,5.714]
[1757346122466,72.78052822,4363.9,4363.8,5.714]
[1757346122633,75.59022822,4363.9,4363.8,5.714]
[1757346123064,76.82022822,4363.9,4363.8,5.714]
[1757346124243,78.05022822,4363.9,4363.8,5.714]
[1757346125483,78.84222822,4363.9,4363.8,5.713]
[1757346125628,82.34013619,4363.9,4363.8,5.713]
[1757346127079,83.57013619,4363.9,4363.8,5.713]
[1757346128376,84.80013619,4363.9,4363.8,5.713]
[1757346129754,86.03013619,4363.9,4363.8,5.713]
[1757346130185,85.58813619,4363.9,4363.8,5.713]
[1757346130481,79.85452822,4363.9,4363.8,6.0061]
[1757346131283,81.08452822,4363.9,4363.8,6.0061]
[1757346131573,81.39052822,4363.9,4363.8,5.713]
[1757346131875,83.75742822,4363.9,4363.8,5.713]
[1757346132238,2.29173828,4363.5,4363.4,0.3967]
[1757346132445,2.29173828,4363.5,4363.4,1.758]
[1757346132649,3.82773828,4363.5,4363.4,1.758]
[1757346133573,3.52173828,4363.5,4363.4,5.9791]
[1757346133934,4.75173828,4363.5,4363.4,5.9791]
[1757346134136,2.46,4363.5,4363.4,6.4232]
[1757346134548,7.42543828,4363.5,4363.4,5.686]
[1757346134768,2.46,4363.5,4363.4,5.9791]
[1757346135398,3.69,4363.5,4363.4,6.4232]
[1757346135739,3.69,4363.5,4363.4,14.0330908]
[1757346136552,4.92,4363.5,4363.4,14.0330908]
[1757346137477,4.92,4363.5,4363.4,14.1474908]
[1757346138043,6.15,4363.5,4363.4,14.1474908]
[1757346139163,6.15,4363.5,4363.4,14.35998456]
[1757346139368,7.38,4363.5,4363.4,9.75009376]
[1757346139673,10.0537,4363.5,4363.4,5.89749376]
[1757346139884,12.78743828,4363.5,4363.4,5.685]
[1757346140416,9.67173828,4363.5,4363.4,5.685]
[1757346140587,8.916,4363.5,4363.4,5.685]
[1757346140770,8.61,4363.5,4363.4,5.9781]
[1757346142073,12.43773828,4363.5,4363.4,5.685]
[1757346142815,14.80643828,4363.5,4363.4,5.685]
[1757346143510,16.47843828,4363.5,4363.4,5.685]
[1757346143666,18.36688606,4363.5,4363.4,5.685]
[1757346144502,18.35668606,4363.5,4363.4,5.685]
[1757346144932,19.15488606,4363.5,4363.4,5.685]
[1757346145067,17.26643828,4363.5,4363.4,5.685]
[1757346145776,14.9747,4363.5,4363.4,5.685]
[1757346145977,12.301,4363.5,4363.4,5.9881]
[1757346146171,13.531,4363.5,4363.4,5.9881]
[1757346148032,20.05313828,4363.5,4363.4,5.685]
[1757346148170,17.7614,4363.5,4363.4,5.685]
[1757346148371,19.62133828,4363.5,4363.4,5.685]
[1757346148803,17.3296,4363.5,4363.4,5.685]
[1757346149306,18.5596,4363.5,4363.4,5.685]
[1757346149643,20.85133828,4363.5,4363.4,5.685]
[1757346149783,24.21487659,4363.5,4363.4,5.685]
[1757346150501,25.44487659,4363.5,4363.4,5.685]
[1757346151880,26.67487659,4363.5,4363.4,5.685]
[1757346153224,27.90487659,4363.5,4363.4,5.685]
[1757346153787,27.47307659,4363.5,4363.4,5.685]
[1757346154289,19.681,4363.5,4363.4,6.4407]
[1757346154609,20.911,4363.5,4363.4,6.4407]
[1757346155890,20.911,4363.5,4363.4,11.0740908]
[1757346156096,22.141,4363.5,4363.4,8.7823]
[1757346156476,22.141,4363.5,4363.4,6.4407]
[1757346156932,22.141,4363.5,4363.4,14.0740908]
[1757346157133,22.1402,4363.5,4363.4,14.1884908]
[1757346157628,23.3702,4363.5,4363.4,8.9881]
[1757346157798,23.3702,4363.5,4363.4,9.4407]
[1757346158131,23.656,4363.5,4363.4,8.685]
[1757346158335,30.93024625,4363.5,4363.4,5.682]
[1757346158486,30.49844625,4363.5,4363.4,5.682]
[1757346159028,31.72844625,4363.5,4363.4,5.682]
[1757346159392,26.86810797,4363.5,4363.4,5.682]
[1757346159594,24.6002,4363.5,4363.4,5.682]
[1757346160314,26.89193828,4363.5,4363.4,5.682]
[1757346160498,28.40773828,4363.5,4363.4,5.682]
[1757346161026,31.12233828,4363.5,4363.4,5.682]
[1757346161812,30.0606,4363.5,4363.4,5.682]
[1757346162012,32.35233828,4363.5,4363.4,5.682]
[1757346162205,34.62024625,4363.5,4363.4,5.682]
[1757346163342,35.85024625,4363.5,4363.4,5.682]
[1757346164741,37.08024625,4363.5,4363.4,5.682]
[1757346165249,34.78850797,4363.5,4363.4,5.682]
[1757346165394,29.806,4363.5,4363.4,5.682]
[1757346166146,31.036,4363.5,4363.4,5.682]
[1757346166311,33.32773828,4363.5,4363.4,5.682]
[1757346166494,36.83433828,4363.5,4363.4,5.68]
[1757346167024,39.10224625,4363.5,4363.4,5.68]
[1757346167735,40.33224625,4363.5,4363.4,5.68]
[1757346169101,41.56224625,4363.5,4363.4,5.68]
[1757346170532,41.13044625,4363.5,4363.4,5.68]
[1757346170848,37.50010797,4363.5,4363.4,5.9831]
[1757346170994,34.4402,4363.5,4363.4,6.4357]
[1757346171530,36.73193828,4363.5,4363.4,6.4357]
[1757346171916,36.73193828,4363.5,4363.4,5.9831]
[1757346172098,37.96193828,4363.5,4363.4,5.9831]
[1757346172498,37.96193828,4363.5,4363.4,5.68]
[1757346173557,38.24773828,4363.5,4363.4,5.68]
[1757346173732,39.47773828,4363.5,4363.4,5.68]
[1757346175265,40.70773828,4363.5,4363.4,5.68]
[1757346175848,40.42193828,4363.5,4363.4,5.68]
[1757346176157,40.42193828,4363.5,4363.4,5.9743]
[1757346176368,40.42193828,4363.5,4362.8,2.31909881]
[1757346176369,0.9064,4363.4,4362.8,0.027]
[1757346176660,3.08421106,4362.6,4362.1,0.04]
[1757346176861,3.08442125,4362.2,4362.1,0.04]
[1757346177078,3.62209818,4362.2,4362.1,3.736]
[1757346177275,3.93089818,4362.2,4362.1,3.736]
[1757346177437,6.63849818,4362.2,4362.1,3.736]
[1757346177855,7.86849818,4362.2,4362.1,3.736]
[1757346179264,9.09849818,4362.2,4362.1,3.736]
[1757346180768,6.77442125,4362.2,4362.1,4.0303]
[1757346181673,6.77442125,4362.2,4362.1,9.7926]
[1757346181674,3.69,4362.2,4362.1,9.7926]
[1757346182352,4.92,4362.2,4362.1,12.0850738]
[1757346182560,4.9192,4362.2,4362.1,12.0850738]
[1757346186337,4.9192,4362.2,4362.1,12.1994738]
[1757346187126,4.9192,4362.2,4362.1,9.4371738]
[1757346187329,6.1492,4362.2,4362.1,9.9007738]
[1757346188073,6.1492,4362.2,4362.1,7.1447]
[1757346188683,7.3792,4362.2,4362.1,7.6083]
[1757346188844,7.3792,4362.2,4362.1,9.9007738]
[1757346189033,7.3792,4362.2,4362.1,7.6083]
[1757346190278,8.6092,4362.2,4362.1,7.6083]
[1757346191214,8.6092,4362.2,4362.1,9.9007738]
[1757346191489,8.6092,4362.2,4362.1,7.1447]
[1757346191638,9.8392,4362.2,4362.1,7.1447]
[1757346192200,9.8392,4362.2,4362.1,9.4371738]
[1757346192381,9.8392,4362.2,4362.1,9.9007738]
[1757346193170,11.0692,4362.2,4362.1,12.1994738]
[1757346194239,11.0692,4362.2,4362.1,12.88688264]
[1757346194446,12.2992,4362.2,4362.1,10.58818264]
[1757346194856,12.2992,4362.2,4362.1,12.88688264]
[1757346195995,13.5292,4362.2,4362.1,12.88688264]
[1757346197599,14.7592,4362.2,4362.1,12.88688264]
[1757346199100,15.9892,4362.2,4362.1,12.88688264]
[1757346199506,15.9892,4362.2,4362.1,12.88888264]
[1757346199881,15.9902,4362.2,4362.1,12.88888264]
[1757346200478,17.2202,4362.2,4362.1,12.88888264]
[1757346200701,17.2202,4362.2,4362.1,10.59018264]
[1757346201827,18.4502,4362.2,4362.1,10.59018264]
[1757346202018,18.4502,4362.2,4362.1,6.89418264]
[1757346202221,18.4502,4362.2,4362.1,10.81318264]
[1757346202587,18.4502,4362.2,4362.1,16.31018264]
[1757346203013,18.4502,4362.2,4362.1,18.60888264]
[1757346203201,19.6802,4362.2,4362.1,18.60888264]
[1757346204622,20.9102,4362.2,4362.1,16.31018264]
[1757346205327,20.9102,4362.2,4362.1,15.84658264]
[1757346205633,20.9102,4362.2,4362.1,16.28578264]
[1757346205830,22.1402,4362.2,4362.1,15.55228264]
[1757346206737,25.3658,4362.2,4362.1,9.457]
[1757346206908,22.4382,4362.2,4362.1,11.7494738]
[1757346207108,22.1402,4362.2,4362.1,14.7494738]
[1757346207308,23.3702,4362.2,4362.1,14.7494738]
[1757346207509,23.3702,4362.2,4362.1,15.0439738]
[1757346207836,23.3702,4362.2,4362.1,15.4831738]
[1757346208036,23.3702,4362.2,4362.1,15.0439738]
[1757346208231,23.3694,4362.2,4362.1,15.0439738]
[1757346208637,24.5994,4362.2,4362.1,15.0439738]
[1757346210011,25.8294,4362.2,4362.1,14.7494738]
[1757346210216,25.8294,4362.2,4362.1,15.0439738]
[1757346211224,27.0594,4362.2,4362.1,15.0439738]
[1757346211877,27.0594,4362.2,4362.1,15.4831738]
[1757346212841,28.2894,4362.2,4362.1,15.4831738]
[1757346214451,29.5194,4362.2,4362.1,15.4831738]
[1757346214652,29.5194,4362.2,4362.1,15.0439738]
[1757346215746,29.8174,4362.2,4362.1,14.7494738]
[1757346215944,31.0474,4362.2,4362.1,14.7494738]
[1757346216525,30.7494,4362.2,4362.1,14.7494738]
[1757346216747,30.7494,4362.2,4362.1,14.8638738]
[1757346217433,31.9794,4362.2,4362.1,14.8638738]
[1757346218450,31.9794,4362.2,4362.1,15.1583738]
[1757346219062,33.2094,4362.2,4362.1,15.1583738]
[1757346219652,33.2094,4362.2,4362.1,15.5975738]
[1757346219846,33.2094,4362.2,4362.1,15.1583738]
[1757346220459,33.2094,4362.2,4362.1,14.8638738]
[1757346220460,34.4394,4362.2,4362.1,14.8638738]
[1757346220698,37.1939,4362.2,4362.1,14.8638738]
[1757346221035,37.1939,4362.2,4362.1,10.9458738]
[1757346221357,37.665,4362.2,4362.1,14.8628738]
[1757346221727,38.895,4362.2,4362.1,16.6208738]
[1757346221928,38.4239,4362.2,4362.1,16.6208738]
[1757346222330,35.6694,4362.2,4362.1,16.9153738]
[1757346222748,35.6694,4362.2,4362.1,16.6208738]
[1757346223259,36.8994,4362.2,4362.1,16.6208738]
[1757346223961,36.8994,4362.2,4362.1,16.9153738]
[1757346224434,38.1294,4362.2,4362.1,16.9153738]
[1757346226064,39.3594,4362.2,4362.1,17.3545738]
[1757346226764,39.3594,4362.2,4362.1,16.9153738]
[1757346226977,39.3594,4362.2,4362.1,17.3545738]
[1757346227185,40.5894,4362.2,4362.1,17.3545738]
[1757346228672,41.8194,4362.2,4362.1,17.3545738]
[1757346230257,43.0494,4362.2,4362.1,17.3545738]
[1757346230659,43.0494,4362.2,4362.1,16.9153738]
[1757346230866,43.0494,4362.2,4362.1,17.3545738]
[1757346231550,44.2794,4362.2,4362.1,17.3545738]
[1757346232696,44.5774,4362.2,4362.1,16.6208738]
[1757346232983,48.2639,4362.2,4362.1,16.6188738]
[1757346233551,48.2631,4362.2,4362.1,16.6188738]
[1757346233972,45.5086,4362.2,4362.1,16.9042738]
[1757346234386,46.7386,4362.2,4362.1,16.9042738]
[1757346234682,46.7386,4362.2,4362.1,17.3688738]
[1757346235497,46.7386,4362.2,4362.1,16.9042738]
[1757346235726,47.9686,4362.2,4362.1,16.9042738]
[1757346237200,49.1986,4362.2,4362.1,16.9042738]
[1757346238478,50.4286,4362.2,4362.1,16.9042738]
[1757346239915,51.6586,4362.2,4362.1,17.3688738]
[1757346240882,51.6586,4362.2,4362.1,16.9042738]
[1757346241574,52.8886,4362.2,4362.1,16.9042738]
[1757346241791,52.8886,4362.2,4362.1,17.3688738]
[1757346243696,54.1186,4362.2,4362.1,17.3688738]
[1757346244299,1e-08,4362.2,4362.1,19.8055738]
[1757346244805,1e-08,4362.2,4362.1,20.49291493]
[1757346245215,1.23000001,4362.2,4362.1,18.05621493]
[1757346246321,1.23000001,4362.2,4362.1,15.76374113]
[1757346246518,0.88648017,4362.2,4362.1,15.76374113]
[1757346246819,2.11648017,4362.2,4362.1,15.76374113]
[1757346247124,1.77296033,4362.2,4362.1,15.76374113]
[1757346247334,1.42944049,4362.2,4362.1,15.76374113]
[1757346247691,1.08592065,4362.2,4362.1,15.76374113]
[1757346247923,2.31592065,4362.2,4362.1,18.20044113]
[1757346248220,1.97240081,4362.2,4362.1,18.20044113]
[1757346248524,1.62888097,4362.2,4362.1,18.20044113]
[1757346248888,1.28536113,4362.2,4362.1,15.76374113]
[1757346249400,2.17184129,4362.2,4362.1,15.76374113]
[1757346249599,2.17184129,4362.2,4362.1,11.38414113]
[1757346249800,1.82832145,4362.2,4362.1,15.29614113]
[1757346250011,1.82832145,4362.2,4362.1,15.76074113]
[1757346250308,1.48480161,4362.2,4362.1,15.76074113]
[1757346250514,2.37128177,4362.2,4362.1,18.19744113]
[1757346250921,2.02776193,4362.2,4362.1,15.76074113]
[1757346251324,2.02776193,4362.2,4362.1,18.19744113]
[1757346251325,1.68524209,4362.2,4362.1,18.19744113]
[1757346251711,1.34172225,4362.2,4362.1,18.19744113]
[1757346251906,2.57172225,4362.2,4362.1,18.19744113]
[1757346252127,2.22820241,4362.2,4362.1,18.19744113]
[1757346252644,1.88468257,4362.2,4362.1,18.19744113]
[1757346252807,1.88468257,4362.2,4362.1,15.76074113]
[1757346253005,1.54116273,4362.2,4362.1,15.76074113]
[1757346253243,2.77116273,4362.2,4362.1,15.76074113]
[1757346253431,2.42765548,4362.2,4362.1,15.76074113]
[1757346253742,2.08414823,4362.2,4362.1,15.76074113]
[1757346254127,1.74064098,4362.2,4362.1,15.76074113]
[1757346254611,2.62713373,4362.2,4362.1,15.76074113]
[1757346254995,2.28362648,4362.2,4362.1,15.76074113]
[1757346255427,1.94011923,4362.2,4362.1,15.76074113]
[1757346255735,1.59661198,4362.2,4362.1,15.76074113]
[1757346256025,2.82661198,4362.2,4362.1,15.76074113]
[1757346256235,2.48310473,4362.2,4362.1,15.76074113]
[1757346256430,2.48310473,4362.2,4362.1,21.40044113]
[1757346256632,2.13959748,4362.2,4362.1,23.68944113]
[1757346256932,1.79609023,4362.2,4362.1,23.91854113]
[1757346257351,2.68258298,4362.2,4362.1,23.91854113]
[1757346257513,2.68258298,4362.2,4362.1,25.29254113]
[1757346257839,2.33907573,4362.2,4362.1,23.91854113]
[1757346258132,1.99556848,4362.2,4362.1,23.91854113]
[1757346258503,2.88206123,4362.2,4362.1,23.91854113]
[1757346259037,2.53781061,4362.2,4362.1,23.91854113]
[1757346259243,2.19435999,4362.2,4362.1,23.91854113]
[1757346259607,1.85090937,4362.2,4362.1,23.91854113]
[1757346260007,2.73745875,4362.2,4362.1,23.91854113]
[1757346260429,2.39400813,4362.2,4362.1,23.91854113]
[1757346260910,2.05055751,4362.2,4362.1,23.91854113]
[1757346261107,4.73815751,4362.2,4362.1,19.22243254]
[1757346261423,5.62470689,4362.2,4362.1,17.18334113]
[1757346261616,5.28125627,4362.2,4362.1,17.18334113]
[1757346261818,2.59365627,4362.2,4362.1,17.46874113]
[1757346262025,2.25020565,4362.2,4362.1,20.38534113]
[1757346262219,2.25020565,4362.2,4362.1,20.61444113]
[1757346262419,1.90675503,4362.2,4362.1,20.38534113]
[1757346262719,3.13675503,4362.2,4362.1,16.47534113]
[1757346262917,2.79330441,4362.2,4362.1,17.18334113]
[1757346263313,2.44985379,4362.2,4362.1,17.18334113]
[1757346263710,2.10640317,4362.2,4362.1,17.18334113]
[1757346264042,1.76295255,4362.2,4362.1,17.18334113]
[1757346264345,2.99295255,4362.2,4362.1,17.18334113]
[1757346264547,2.64950193,4362.2,4362.1,17.18334113]
[1757346264920,2.30605131,4362.2,4362.1,17.18334113]
[1757346265451,1.96260069,4362.2,4362.1,17.18334113]
[1757346265649,4.39760069,4362.2,4362.1,13.27334113]
[1757346265850,5.62760069,4362.2,4362.1,17.18234113]
[1757346266460,3.19260069,4362.2,4362.1,17.18234113]
[1757346267368,4.42260069,4362.2,4362.1,17.18234113]
[1757346267535,6.85760069,4362.2,4362.1,17.18234113]
[1757346268033,6.85860069,4362.2,4362.1,17.18234113]
[1757346268652,4.42360069,4362.2,4362.1,17.18234113]
[1757346268843,5.65360069,4362.2,4362.1,17.18234113]
[1757346270259,6.88360069,4362.2,4362.1,17.18234113]
[1757346271257,6.88360069,4362.2,4362.1,17.29674113]
[1757346271829,8.11360069,4362.2,4362.1,17.29674113]
[1757346273184,0.001,4363.1,4363.0,0.2291]
[1757346273360,39.08572821,4363.5,4363.2,3.784]
[1757346273573,37.83854966,4363.5,4363.4,6.202]
[1757346273728,37.83854966,4363.5,4363.4,40.46282991]
[1757346274040,34.40500573,4363.5,4363.4,41.82097871]
[1757346274225,34.06149219,4363.5,4363.4,44.66935429]
[1757346274432,35.29149219,4363.5,4363.4,44.66935429]
[1757346274626,34.94797865,4363.5,4363.4,16.04335429]
[1757346274885,34.94797865,4363.5,4363.4,46.04335429]
[1757346275036,34.60446511,4363.5,4363.4,43.19497871]
[1757346275231,34.60446511,4363.5,4363.4,46.04006539]
[1757346275555,34.26095157,4363.5,4363.4,46.04006539]
[1757346276064,35.14743803,4363.5,4363.4,46.21457816]
[1757346276275,34.80392449,4363.5,4363.4,46.21457816]
[1757346276572,34.80392449,4363.5,4363.4,43.36949148]
[1757346276783,34.46041095,4363.5,4363.4,43.36949148]
[1757346276949,34.46041095,4363.5,4363.4,41.99549148]
[1757346277264,34.11689741,4363.5,4363.4,44.83543166]
[1757346277469,35.00338387,4363.5,4363.4,44.83543166]
[1757346277863,34.65987033,4363.5,4363.4,15.06453166]
[1757346278085,78.399287,4363.9,4363.7,0.792]
[1757346278264,78.05577346,4363.9,4363.8,28.615834]
[1757346278463,78.05577346,4363.9,4363.8,29.16511307]
[1757346278763,77.71225992,4363.9,4363.8,45.86711307]
[1757346278964,77.36896101,4363.9,4363.8,45.86711307]
[1757346279371,77.0256621,4363.9,4363.8,43.01011307]
[1757346279776,76.68236319,4363.9,4363.8,43.01011307]
[1757346280269,77.56906428,4363.9,4363.8,29.16511307]
[1757346280652,77.22576537,4363.9,4363.8,29.16511307]
[1757346281052,76.88246646,4363.9,4363.8,29.16511307]
[1757346281352,76.53916755,4363.9,4363.8,29.16511307]
[1757346281553,77.76916755,4363.9,4363.8,29.16511307]
[1757346281756,77.42586864,4363.9,4363.8,29.16511307]
[1757346282275,77.08256973,4363.9,4363.8,29.16511307]
[1757346282644,76.73927082,4363.9,4363.8,29.16511307]
[1757346283044,77.62597191,4363.9,4363.8,29.27951307]
[1757346283445,77.00807549,4363.9,4363.8,29.27951307]
[1757346283773,76.66477658,4363.9,4363.8,29.27951307]
[1757346284372,77.55067767,4363.9,4363.8,29.27951307]
[1757346284577,77.20737876,4363.9,4363.8,29.27951307]
[1757346285045,76.86407985,4363.9,4363.8,29.27951307]
[1757346285565,76.52084378,4363.9,4363.8,29.27951307]
[1757346285773,77.40760771,4363.9,4363.8,29.27951307]
[1757346286261,77.06437164,4363.9,4363.8,29.27951307]
[1757346286668,76.72113557,4363.9,4363.8,29.27951307]
[1757346287049,77.6078995,4363.9,4363.8,29.27951307]